Cogmind - Beta 15 @@@ ROGUE MODE // 2025.05.27 @ 21:58:53 Player: Xcalibur Result: Destroyed by P-60 Hacker with Shock Rifle Performance ------------- Evolutions (4) 2000 Regions Visited (9) 1800 Robots Destroyed (100) 500 Value Destroyed (2935) 2935 Prototype IDs (11) 220 Alien Tech Used (0) 0 Bonus (1018) 1018 TOTAL SCORE: 8473 Bonus ------- High Alert Combat Kills 207 Follower Combat Kills 311 Entered DSFs 500 Cogmind --------- Core Integrity 0/850 Matter 167/300 Energy 100/100 System Corruption 16% Temperature Cool (0) Movement Core (50) Location -6/Factory Parts ------- > --- POWER (1) -------- (None) > --- PROPULSION (3) --- Faulty Cooled Cesium-ion Thruster > --- UTILITY (8) ------ (None) > --- WEAPON (3) ------- (None) > --- INVENTORY (5) ---- (None) Peak State ------------ > --- POWER ------------ Light Angular Momentum Engine > --- PROPULSION ------- Carbon-fiber Leg Titanium Leg Titanium Leg > --- UTILITY ---------- Advanced Heat Sink Medium Storage Unit IFF Parser Improved Salvage Targeting Computer Advanced Targeting Computer Improved Medium Armor Plating Improved Medium Armor Plating Focal Shield > --- WEAPON ----------- Plasma Rifle Enhanced Autogun Enhanced Autogun > --- INVENTORY -------- Micro Nuclear Core Improved Titanium Leg Improved Titanium Leg Improved Titanium Leg Reactive Plating Authchip [Weapon] High-powered Tractor Beam Plasma Rifle Gauss Rifle Advanced EMP Blaster [Rating: 61] Favorites ----------- Power Light Ion Engine Engine Light Ion Engine Power Core Light Nuclear Core Propulsion Titanium Leg Treads Light Treads Leg Titanium Leg Wheel Compact Wheel Flight Unit Cooled Cesium-ion Thruster Utility Improved Medium Armor Plating Device Improved Heat Sink Storage Medium Storage Unit Processor Advanced Targeting Computer Hackware System Shield Protection Improved Medium Armor Plating Weapon Enhanced Autogun Energy Gun Small Laser Ballistic Gun Enhanced Autogun Launcher Advanced EMP Blaster Build | -11 -10 -10 -10 -9 -8 -8 -7 -7 -6 ------- Run | Yrd Mat Min Exi Min Mat Sto Fac DSF Fac Slots Evolved 8 | . . . . . 4 . 2 . 2 Power . | . . . . . . . . . . Propulsion 1 | . . . . . 1 . . . . Utility 6 | . . . . . 2 . 2 . 2 Weapon 1 | . . . . . 1 . . . . Parts Attached 96 | 9 6 2 . . 31 12 2 3 31 Power 15 | 1 2 1 . . 3 4 . . 4 Engine 12 | 1 2 1 . . 2 3 . . 3 Core 3 | . . . . . 1 1 . . 1 Reactor . | . . . . . . . . . . Propulsion 18 | 3 2 . . . 6 . . . 7 Treads 5 | 1 1 . . . 2 . . . 1 Leg 9 | . . . . . 4 . . . 5 Wheel 3 | 2 1 . . . . . . . . Hover . | . . . . . . . . . . Flight 1 | . . . . . . . . . 1 Utility 37 | 2 1 . . . 12 2 2 1 17 Device 19 | 1 . . . . 3 1 1 . 13 Storage 3 | 1 . . . . 2 . . . . Processor 4 | . . . . . 1 . 1 . 2 Hackware 2 | . . . . . 1 . . . 1 Protection 9 | . 1 . . . 5 1 . 1 1 Artifact . | . . . . . . . . . . Weapon 26 | 3 1 1 . . 10 6 . 2 3 Energy Gun 9 | 1 . . . . 3 2 . 1 2 Energy Cannon . | . . . . . . . . . . Ballistic Gun 16 | 2 1 1 . . 7 3 . 1 1 Ballistic Cannon . | . . . . . . . . . . Launcher 1 | . . . . . . 1 . . . Special Weapon . | . . . . . . . . . . Impact Weapon . | . . . . . . . . . . Slashing Weapon . | . . . . . . . . . . Piercing Weapon . | . . . . . . . . . . Special Melee Weapon . | . . . . . . . . . . Unidentified Prototypes 4 | . . . . . 1 2 . . 1 Parts Lost 30 | . . 3 . . 4 2 . 1 20 Power 5 | . . 1 . . 1 . . . 3 Propulsion 8 | . . 2 . . . . . . 6 Utility 11 | . . . . . 2 1 . 1 7 Weapon 6 | . . . . . 1 1 . . 4 Highest Loss Streak 13 | . . 3 . . 3 1 . 1 13 To Critical Strikes 1 | . . . . . . . . . 1 Average Backups 8 | 5 7 7 8 8 8 9 8 9 8 Power . | . 1 . . . . 1 1 1 . Propulsion 2 | 2 3 3 4 4 3 1 2 2 2 Utility 2 | . 1 2 2 2 1 3 2 3 2 Weapon 2 | . 2 2 2 2 2 3 3 3 2 Tool/Special . | . . . . . . . . . . Unused Backups 23 | 2 2 . . . 10 5 . . 4 Power . | . . . . . . . . . . Propulsion 9 | 2 . . . . 3 3 . . 1 Utility 9 | . 2 . . . 4 1 . . 2 Weapon 5 | . . . . . 3 1 . . 1 Tool/Special . | . . . . . . . . . . Average Slot Usage (%) 95 | . 100 99 100 100 99 99 96 99 82 Engine 7 | . 14 13 14 14 4 7 7 7 5 Core 1 | . . . . . 4 . . . . Treads 5 | . 17 14 14 14 6 . . . . Leg 15 | . . . . . 18 27 23 23 16 Wheel 3 | . 10 13 14 14 1 . . . . Device 8 | . 7 4 . . 6 9 15 8 16 Storage 9 | . 14 14 14 14 9 9 7 7 5 Processor 5 | . . . . . 2 9 11 15 9 Protection 11 | . 6 9 14 14 15 9 7 13 10 Energy Gun 9 | . 14 14 14 14 9 8 7 7 5 Ballistic Gun 15 | . 14 14 14 14 17 18 15 14 10 Peak Build Rating 61 | 7 7 7 7 7 35 40 44 48 61 Average Rating 28 | 5 7 6 7 7 23 37 43 46 48 On Entrance 20 | . 7 7 7 7 7 35 39 44 48 Naked Turns 104 | . . . . . . . . . 104 Heaviest Build 56 | 12 14 13 13 13 33 39 37 44 56 Greatest Support 57 | 20 40 16 16 16 51 51 51 51 57 Greatest Overweight (x) 1 | 1 . . . . 1 . . . 1 Average Overweight (x) . | . . . . . . . . . . Largest Inventory Capacity 10 | 8 8 8 8 8 10 10 10 10 10 Average Capacity 8 | 7 8 8 8 8 8 10 10 10 9 Most Carried 10 | 8 8 8 8 8 10 10 9 10 10 Average Carried 8 | 5 7 7 8 8 8 9 8 9 8 Final Capacity 10 | 8 8 8 8 8 10 10 10 10 5 Final Carried 10 | 8 8 8 8 8 10 10 8 10 . Class Distribution -------------------- 34% | Tank 27% | Mutant 16% | Scavenger-Tank 7% | Commander-Gunner 4% | Scavenger-Gunner 3% | Commander-Tank 3% | Scavenger-Mutant Dominant Class ---------------- Mutant | -10/Materials Mutant | -10/Mines Mutant | -10/Exiles Mutant | -9/Mines Tank | -8/Materials Tank | -8/Storage Tank | -7/Factory Commander-Gunner | -7/DSF Scavenger-Tank | -6/Factory Resources | -11 -10 -10 -10 -9 -8 -8 -7 -7 -6 ----------- Run | Yrd Mat Min Exi Min Mat Sto Fac DSF Fac Matter Collected 2605 | 354 154 69 . . 718 707 . 127 476 Remotely . | . . . . . . . . . . Salvage Created 3956 | 142 257 146 . . 958 1884 . 122 447 Parts 222 | 9 23 7 . . 53 98 . 6 26 Haulers Intercepted 3 | . . . . . 3 . . . . Recyclers Shooed 2 | . . . . . 1 . . . 1 Parts Field Recycled . | . . . . . . . . . . Retrieved Matter . | . . . . . . . . . . Parts Self-Destructed . | . . . . . . . . . . Prevented . | . . . . . . . . . . Kills | -11 -10 -10 -10 -9 -8 -8 -7 -7 -6 ------- Run | Yrd Mat Min Exi Min Mat Sto Fac DSF Fac Combat Hostiles Destroyed 75 | . 9 9 . . 12 36 . 1 8 Guns 63 | . 9 9 . . 12 26 . 1 6 AOE 9 | . . . . . . 8 . . 1 Classes Destroyed 17 | 2 3 . . . 4 5 . . 3 Worker 2 | . . . . . 1 1 . . . Builder 1 | . . . . . . 1 . . . Tunneler 3 | 3 . . . . . . . . . Hauler 3 | . . . . . 3 . . . . Recycler 6 | 1 . . . . 4 1 . . . Operator 2 | . . . . . 2 . . . . Watcher 8 | . 1 . . . 4 2 . . 1 Swarmer 23 | . 6 9 . . 5 3 . . . Saboteur 1 | . . . . . . . . . 1 Grunt 24 | . 3 . . . 2 16 . . 3 Brawler 4 | . . . . . . 4 . . . Duelist 2 | . . . . . . 2 . . . Protector 1 | . . . . . . 1 . . . Sentry 13 | . . . . . 5 8 . . . Hunter 4 | . . . . . . 2 . 1 1 Programmer 2 | . . . . . . . . . 2 Heavy 1 | . . . . . . . . . 1 Best Kill Streak 8 | 4 6 3 . . 6 8 . 1 2 Combat Bots Only 8 | . 6 3 . . 4 8 . 1 2 Max Kills in Single Turn 3 | 1 1 1 . . 2 3 . 1 1 Gunslinging 1 | . . . . . 1 1 . . . Exploded 3 | . . . . . . 3 . . 1 Melee . | . . . . . . . . . . Uniques/NPCs Destroyed . | . . . . . . . . . . Combat | -11 -10 -10 -10 -9 -8 -8 -7 -7 -6 -------- Run | Yrd Mat Min Exi Min Mat Sto Fac DSF Fac Hostile Shots Fired 660 | . 59 62 . . 135 70 . 13 321 Missed 224 | . 16 16 . . 56 26 . 6 104 Hits 436 | . 43 46 . . 79 44 . 7 217 Melee 2 | . . . . . . 1 . . 1 Projectile 434 | . 43 46 . . 79 43 . 7 216 Critical Strikes 13 | . . . . . 1 2 . 1 9 Actively Blocked 3 | . . . . . . . . . 3 Part Disruptions 6 | . . . . . . . . . 6 Actively Blocked 2 | . . . . . . . . . 2 Damage Taken 6136 | . 416 359 . . 902 628 . 253 3578 Core 1152 | . 71 86 . . 86 53 . . 856 Absorbed by Shields . | . . . . . . . . . . Ignored by Resistances 328 | . . . . . . . . . 328 Regen/Repaired (Parts) 298 | . . . . . 63 . . . 235 Core Remaining (%) 77 | 100 . . . 37 . 74 . 100 . Volleys Fired 247 | 6 32 22 . . 61 68 . 9 49 Largest 3 | 2 2 2 . . 3 3 . 3 3 Hottest 125 | 60 60 60 . . 105 115 . 125 125 Shots Fired 615 | 12 62 44 . . 172 189 . 25 111 Gun 607 | 12 62 44 . . 172 183 . 25 109 Cannon . | . . . . . . . . . . Launcher 8 | . . . . . . 6 . . 2 Special . | . . . . . . . . . . Kinetic 384 | 8 32 22 . . 115 126 . 18 63 Thermal 205 | 4 30 22 . . 57 57 . 7 28 Explosive . | . . . . . . . . . . Electromagnetic 26 | . . . . . . 6 . . 20 Robot Hit Streak 23 | 9 10 7 . . 13 23 . 11 20 Robot Miss Streak 5 | 1 4 4 . . 5 3 . 1 4 Penetration Max . | . . . . . . . . . . Secondary Targets 8 | . 1 1 . . 1 4 . . 1 Max Gunslinging Chain 1 | . 1 1 . . 1 1 . . 1 Shots Hit Robots 415 | 9 43 19 . . 105 136 . 21 82 Core Hits 189 | 5 15 10 . . 44 74 . 8 33 Critical Kills 4 | . 1 . . . 1 2 . . . Critical Parts Destroyed 1 | . . . . . 1 . . . . Critical Strikes 10 | . 1 . . . 2 5 . . 2 Burn 5 | . . . . . . 3 . . 2 Destroy 5 | . 1 . . . 2 2 . . . Melee Attacks . | . . . . . . . . . . Impact . | . . . . . . . . . . Slashing . | . . . . . . . . . . Piercing . | . . . . . . . . . . Sneak Attacks . | . . . . . . . . . . Combat Hostiles . | . . . . . . . . . . Follow-up Attacks . | . . . . . . . . . . Damage Inflicted 8918 | 105 514 227 . . 1688 3939 . 370 2075 Guns 6568 | 105 514 223 . . 1641 2303 . 370 1412 Cannons . | . . . . . . . . . . Explosions 2276 | . . . . . . 1613 . . 663 Melee . | . . . . . . . . . . Ramming 74 | . . 4 . . 47 23 . . . Kinetic 4068 | 63 271 81 . . 1067 1463 . 254 869 Thermal 3107 | 42 243 142 . . 574 1183 . 116 807 Explosive . | . . . . . . . . . . Electromagnetic 1669 | . . . . . . 1270 . . 399 Impact . | . . . . . . . . . . Slashing . | . . . . . . . . . . Piercing . | . . . . . . . . . . Highest Corruption 16 | . . . . . . . . . 16 Average Corruption 4 | . . . . . . . . . 4 Corruption Purged . | . . . . . . . . . . Corruption Blocked . | . . . . . . . . . . Effects 13 | . . . . . . . . . 13 Message Errors 3 | . . . . . . . . . 3 Matter Fused 2 | . . . . . . . . . 2 Heat Flow Errors 1 | . . . . . . . . . 1 Parts Rejected 1 | . . . . . . . . . 1 Data Loss (minor) 1 | . . . . . . . . . 1 Data Loss (major) 1 | . . . . . . . . . 1 Misfires 1 | . . . . . . . . . 1 Misdirections 3 | . . . . . . . . . 3 Overload Shots . | . . . . . . . . . . Overflow Damage 13 | . . . . . . 13 . . . Projectiles . | . . . . . . . . . . Explosions 13 | . . . . . . 13 . . . Melee . | . . . . . . . . . . Knockbacks 1 | . . . . . . 1 . . . Impact 1 | . . . . . . 1 . . . Kinetic . | . . . . . . . . . . Secondary . | . . . . . . . . . . Self-Inflicted Damage 58 | . . 2 . . . . . . 56 Shots 1 | . . . . . . . . . 1 Rammed 2 | . . 2 . . . . . . . Targets Rammed 12 | . . 2 . . 7 3 . . . Kicked 10 | . . . . . 7 3 . . . Crushed . | . . . . . . . . . . Highest Temperature 364 | . 90 79 . . 364 249 . 20 256 Average Temperature 77 | . 30 24 . . 104 70 . 10 88 Received Heat Transfer 537 | . 78 . . . 171 171 . . 117 Effects 2 | . . . . . 2 . . . . Energy Bleed 1 | . . . . . 1 . . . . Interference 1 | . . . . . 1 . . . . Siege Activations . | . . . . . . . . . . Martial Activations . | . . . . . . . . . . Shielding Activations . | . . . . . . . . . . Robots Disrupted . | . . . . . . . . . . Combat Hostiles . | . . . . . . . . . . Robots Corrupted 2 | . . . . . . 2 . . . Combat Hostiles 2 | . . . . . . 2 . . . Parts Fried . | . . . . . . . . . . Impact Corruptions . | . . . . . . . . . . Robots Melted 1 | . . . . . . . . . 1 Combat Hostiles 1 | . . . . . . . . . 1 Parts Melted 6 | . . . . . 1 2 . . 3 Heat Transferred 6064 | 100 550 325 . . 1213 2253 . 248 1375 Parts Sabotaged 3 | . . . . . . . . . 3 Parts Stolen . | . . . . . . . . . . Parts Stripped . | . . . . . . . . . . Power Chain Reactions 2 | . . . . . . 1 . . 1 Alert | -11 -10 -10 -10 -9 -8 -8 -7 -7 -6 ------- Run | Yrd Mat Min Exi Min Mat Sto Fac DSF Fac Maximum Alert Level 3 | . . . . . . 3 1 1 . Low Security (%) 83 | 100 100 100 . 100 100 44 . 6 100 Level 1 7 | . . . . . . 17 100 93 . Level 2 2 | . . . . . . 9 . . . Level 3 6 | . . . . . . 28 . . . Level 4 . | . . . . . . . . . . Level 5 . | . . . . . . . . . . High Security . | . . . . . . . . . . Max Security . | . . . . . . . . . . Peak Influence 765 | 10 148 121 . . 133 765 344 288 154 Initial 344 | . 3 51 . . . 16 344 240 151 Average 112 | 2 49 55 . . 22 328 344 241 39 Influence Increases 2839 | 20 247 210 . . 535 1263 . 138 426 Destroy 0b10 Robot/C 1640 | . 180 180 . . 240 800 . 60 180 Destroy 0b10 Robot/NC 140 | 20 5 . . . 70 35 . 5 5 Destroy Leader 422 | . 32 30 . . 94 194 . 20 52 Allied During Kill 100 | . . . . . . 47 . 38 15 Successful Hack 126 | . 14 . . . 52 19 . . 41 Disable Machine 45 | . . . . . 15 . . 15 15 Destroy Structure 36 | . 1 . . . 4 18 . . 13 Partial Spotted 30 | . 15 . . . 15 . . . . Lose Combat Pursuer 300 | . . . . . 45 150 . . 105 Influence Decreases 2808 | 15 120 342 . . 496 545 413 194 683 Entered New Map 760 | . 2 81 . . . 23 413 104 137 Time Decay 1542 | 15 118 231 . . 343 462 . . 373 Lost Part 207 | . . 30 . . 20 20 . 10 127 Lost Ally 166 | . . . . . . 40 . 80 46 Purge Threat 133 | . . . . . 133 . . . . Squads Dispatched 19 | . 2 . . . 1 8 . 1 7 Investigation 4 | . 1 . . . . 1 . . 2 Extermination 3 | . . . . . . . . . 3 Reinforcement 8 | . 1 . . . 1 3 . 1 2 Assault 4 | . . . . . . 4 . . . Garrison . | . . . . . . . . . . Intercept . | . . . . . . . . . . Searches Triggered . | . . . . . . . . . . Construction Impeded 1 | . . . . . . . . . 1 Haulers Reinforced . | . . . . . . . . . . Active Scanning Responses . | . . . . . . . . . . Cargo Convoy Interrupts 1 | . . . . . . . . . 1 Stealth | -11 -10 -10 -10 -9 -8 -8 -7 -7 -6 --------- Run | Yrd Mat Min Exi Min Mat Sto Fac DSF Fac Distress Signals 3 | . 1 . . . 1 1 . . . Communications Jammed . | . . . . . . . . . . Distress Signals . | . . . . . . . . . . Times Spotted 136 | . 13 10 . . 26 57 . 3 27 Peak Tracking Total 12 | . 8 3 . . 8 11 . 1 12 Tactical Retreats 11 | . . 1 . . 2 5 . . 3 Traps | -11 -10 -10 -10 -9 -8 -8 -7 -7 -6 ------- Run | Yrd Mat Min Exi Min Mat Sto Fac DSF Fac Traps Triggered 3 | . 1 . . . 1 . . 1 . Indirectly . | . . . . . . . . . . Trap Hack Attempts . | . . . . . . . . . . Triggered . | . . . . . . . . . . Disarmed . | . . . . . . . . . . Reprogrammed . | . . . . . . . . . . Reused . | . . . . . . . . . . Traps Extracted . | . . . . . . . . . . Installed . | . . . . . . . . . . Triggered . | . . . . . . . . . . Machines | -11 -10 -10 -10 -9 -8 -8 -7 -7 -6 ---------- Run | Yrd Mat Min Exi Min Mat Sto Fac DSF Fac Machines Disabled 3 | . . . . . 1 . . 1 1 Max in Single Turn 1 | . . . . . 1 . . 1 1 Machines Repaired . | . . . . . . . . . . Machines Dismantled . | . . . . . . . . . . Machines Sabotaged . | . . . . . . . . . . Overloaded Fab Kills . | . . . . . . . . . . Hacking | -11 -10 -10 -10 -9 -8 -8 -7 -7 -6 --------- Run | Yrd Mat Min Exi Min Mat Sto Fac DSF Fac Machines Accessed 32 | . 2 . 2 . 12 6 1 . 9 Terminals 24 | . 2 . . . 9 6 1 . 6 Fabricators . | . . . . . . . . . . Repair Stations 3 | . . . . . 1 . . . 2 Recycling Units . | . . . . . . . . . . Scanalyzers 3 | . . . . . 2 . . . 1 Garrison Access . | . . . . . . . . . . Total Hacks 137 | . 5 . 32 . 65 12 1 . 22 Successful 89 | . 2 . 32 . 43 3 1 . 8 Failed 48 | . 3 . . . 22 9 . . 14 Catastrophic 14 | . . . . . 4 5 . . 5 Database Lockouts . | . . . . . . . . . . Manual 59 | . 5 . . . 37 7 . . 10 Terminals 74 | . 5 . . . 43 12 1 . 13 Fabricators . | . . . . . . . . . . Repair Stations 11 | . . . . . 3 . . . 8 Recycling Units . | . . . . . . . . . . Scanalyzers 20 | . . . . . 19 . . . 1 Garrison Access . | . . . . . . . . . . Terminal Hacks 52 | . 1 . 32 . 15 1 1 . 2 Record 34 | . . . 32 . 1 . . . 1 Robot Analysis 5 | . . . . . 5 . . . . Prototype ID Bank 1 | . . . . . 1 . . . . Open Door 1 | . . . . . . 1 . . . Open DSF 2 | . . . . . . . 1 . 1 Level Access Points 1 | . . . . . 1 . . . . Branch Access Points 1 | . . . . . 1 . . . . Terminal Index 1 | . . . . . 1 . . . . Alert Level 1 | . . . . . 1 . . . . Unreport Threat 1 | . . . . . 1 . . . . Locate Traps 1 | . . . . . 1 . . . . Surveillance Status 1 | . 1 . . . . . . . . Hauler Manifests 1 | . . . . . 1 . . . . Registered Components 1 | . . . . . 1 . . . . Fabricator Hacks . | . . . . . . . . . . Repair Station Hacks 6 | . . . . . 2 . . . 4 Scan Component 3 | . . . . . 1 . . . 2 Repair 3 | . . . . . 1 . . . 2 Recycling Unit Hacks . | . . . . . . . . . . Scanalyzer 18 | . . . . . 18 . . . . Insert Component 9 | . . . . . 9 . . . . Analyze 9 | . . . . . 9 . . . . Garrison Access Hacks . | . . . . . . . . . . Unauthorized Hacks 13 | . 1 . . . 8 2 . . 2 Terminals 13 | . 1 . . . 8 2 . . 2 Botnet 11 | . 1 . . . 6 2 . . 2 Operators 2 | . . . . . 2 . . . . Fabricators . | . . . . . . . . . . Repair Stations . | . . . . . . . . . . Recycling Units . | . . . . . . . . . . Scanalyzers . | . . . . . . . . . . Garrison Access . | . . . . . . . . . . Data Cores Recovered . | . . . . . . . . . . Used . | . . . . . . . . . . Hacking Detections 24 | . 2 . . . 9 6 . . 7 Full Trace Events 3 | . 1 . . . . . . . 2 Feedback Events 1 | . . . . . . . . . 1 Corruption 1 | . . . . . . . . . 1 Feedback Blocked . | . . . . . . . . . . Robot Schematics Acquired . | . . . . . . . . . . Robots Built . | . . . . . . . . . . Authchips . | . . . . . . . . . . Time . | . . . . . . . . . . Total Robot Build Rating . | . . . . . . . . . . Part Schematics Acquired 7 | . . . . . 7 . . . . Parts Built . | . . . . . . . . . . Authchips . | . . . . . . . . . . Time . | . . . . . . . . . . Total Part Build Rating . | . . . . . . . . . . Parts Repaired 3 | . . . . . 1 . . . 2 Time 142 | . . . . . 38 . . . 104 Parts Recycled . | . . . . . . . . . . Recycled Matter . | . . . . . . . . . . Retrieved Matter . | . . . . . . . . . . Retrieved Components . | . . . . . . . . . . Parts Scanalyzed 8 | . . . . . 8 . . . . Part Schematics Acquired 7 | . . . . . 7 . . . . Parts Damaged . | . . . . . . . . . . Bothacking | -11 -10 -10 -10 -9 -8 -8 -7 -7 -6 ------------ Run | Yrd Mat Min Exi Min Mat Sto Fac DSF Fac Used RIF Installer . | . . . . . . . . . . Robots Hacked . | . . . . . . . . . . Non-combat . | . . . . . . . . . . Combat . | . . . . . . . . . . Robot Hacks Applied . | . . . . . . . . . . Relay Couplers Released . | . . . . . . . . . . Fabnet Peak Effective % . | . . . . . . . . . . Robots Rewired . | . . . . . . . . . . Allies Hacked . | . . . . . . . . . . Hacks Repelled . | . . . . . . . . . . Allies | -11 -10 -10 -10 -9 -8 -8 -7 -7 -6 -------- Run | Yrd Mat Min Exi Min Mat Sto Fac DSF Fac Total Allies 12 | . . . . . . 12 . . . Largest Group 10 | . . . . . . 10 10 10 6 Highest-Rated Group 173 | . . . . . . 173 173 173 109 Highest-Rated Ally 31 | . . . . . . 31 29 29 29 Total Orders . | . . . . . . . . . . Ally Attacks 66 | . . . . . . 25 . 21 20 Total Damage 837 | . . . . . . 386 . 292 159 Kills 9 | . . . . . . 6 . 2 1 Allies Corrupted . | . . . . . . . . . . Allies Melted . | . . . . . . . . . . Intel | -11 -10 -10 -10 -9 -8 -8 -7 -7 -6 ------- Run | Yrd Mat Min Exi Min Mat Sto Fac DSF Fac Active Infowar (turns) 1781 | 16 145 214 . . 429 . . . 977 Optics 61 | . . . . . . . . . 61 Sensors 204 | . . . . . . . . . 204 IFF 773 | . . . . . . . . . 773 Seismic 804 | 16 145 214 . . 429 . . . . Robot Analysis Total 5 | . . . . . 5 . . . . Derelict Logs Recovered 1 | . . 1 . . . . . . . Drone Launches . | . . . . . . . . . . Drone Recoveries . | . . . . . . . . . . Exploration | -11 -10 -10 -10 -9 -8 -8 -7 -7 -6 ------------- Run | Yrd Mat Min Exi Min Mat Sto Fac DSF Fac Turns Passed 5614 | 99 282 635 374 36 1526 1236 13 190 1223 Spaces Moved 3649 | 55 151 524 375 37 844 697 7 109 850 Core 250 | 4 . . . . . . . . 246 Treads 12 | 1 7 . . . 4 . . . . Legs 2119 | . . . . . 702 697 7 109 604 Wheels 1268 | 50 144 524 375 37 138 . . . . Hover . | . . . . . . . . . . Flight . | . . . . . . . . . . Fastest Speed 50 | 50 100 100 100 100 115 130 130 130 50 Average Speed 113 | 89 102 100 100 100 125 130 130 130 105 Slowest Speed 240 | 160 160 100 100 100 240 130 130 130 200 Overloaded Moves . | . . . . . . . . . . Propulsion Burnouts . | . . . . . . . . . . Robots Hopped . | . . . . . . . . . . Potential Cave-ins 5 | . . 5 . . . . . . . Cave-ins Triggered . | . . . . . . . . . . Exploration Rate (%) 52 | 4 41 86 86 25 50 82 . 81 17 Regions Visited 9 Branch Regions 4 Pre-discovered Areas 1 | . . . 1 . . . . . . Known Exits Taken 3 | . . . . . 1 1 1 . . Unknown Exits Taken 5 | 1 1 1 1 1 . . . . . Scrap Searched 2 | . . 2 . . . . . . . Spaces Dug . | . . . . . . . . . . Terrain Destroyed 20 | . . . . . . 9 . . 11 Melee . | . . . . . . . . . . Projectile . | . . . . . . . . . . AOE 20 | . . . . . . 9 . . 11 Terrain Rammed . | . . . . . . . . . . Walls Destroyed . | . . . . . . . . . . Machines Disabled . | . . . . . . . . . . Actions | -11 -10 -10 -10 -9 -8 -8 -7 -7 -6 --------- Run | Yrd Mat Min Exi Min Mat Sto Fac DSF Fac Total 4699 | 87 216 593 374 36 1202 925 11 146 1109 Wait 506 | . 20 37 . . 186 108 3 15 137 Move 3640 | 54 150 523 374 36 843 696 6 108 850 Hop . | . . . . . . . . . . Pick Up 66 | 11 2 3 . . 25 11 . 4 10 Fast Attach 36 | 7 . . . . 7 7 . . 15 Attach 29 | . . 3 . . 6 3 2 2 13 Detach 3 | . . . . . 1 1 . . 1 Swap 66 | 6 7 2 . . 26 9 . 1 15 Drop 87 | 3 5 1 . . 40 17 . 2 19 Fire 247 | 6 32 22 . . 61 68 . 9 49 Melee . | . . . . . . . . . . Ram 2 | . . 2 . . . . . . . Kick 10 | . . . . . 7 3 . . . Crush . | . . . . . . . . . . Escape Stasis 5 | . . . . . . . . 5 . Rewire 2 | . . . . . . 2 . . . Trap . | . . . . . . . . . . Miscellaneous . | . . . . . . . . . . Route ------- -11/Scrapyard -10/Materials (discovered 2 exits: [*Min x2]) -10/Mines (discovered 3 exits: [*Mat x2] / *Exi) -10/Exiles -9/Mines -8/Materials (discovered 4 exits: Fac x3 / *Sto) -8/Storage -7/Factory -7/DSF -6/Factory History --------- Turn | Location | Event 13 | -11/Scrapyard | Discovered new exit (range 16) 100 | -11/Scrapyard | Entered Materials 100 | -10/Materials | Discovered new exit (range 15) 296 | -10/Materials | Discovered new exit (range 11) 317 | -10/Materials | Build established: Mutant 382 | -10/Materials | Entered Mines 473 | -10/Mines | Core integrity fell below 50% 519 | -10/Mines | Lost 3 parts (1p2n) 720 | -10/Mines | Discovered new exit (range 13) 788 | -10/Mines | Discovered new exit (range 15) 1012 | -10/Mines | Deemed a non-threat by the Exiles lab entrance 1013 | -10/Mines | Discovered new exit (range 5) 1017 | -10/Mines | Entered Exiles 1044 | -10/Exiles | Met 8R-AWN 1058 | -10/Exiles | Met EX-HEX 1097 | -10/Exiles | Met EX-DEC 1133 | -10/Exiles | Visited The Gauntlet 1247 | -10/Exiles | Learned location of Zion (-6) 1264 | -10/Exiles | Met EX-BIN 1381 | -10/Exiles | Discovered new exit (range 12) 1391 | -10/Exiles | Entered Mines 1417 | -9/Mines | Discovered new exit (range 13) 1427 | -9/Mines | Entered Materials 1427 | -8/Materials | Evolved 4 slots: Propulsion x1, Utility x2, Weapon x1 1428 | -8/Materials | Identified exit to Storage 1824 | -8/Materials | Lost 3 parts (2u1w) 1992 | -8/Materials | Identified exit to Factory 2129 | -8/Materials | Build established: Scavenger-Tank 2238 | -8/Materials | Repaired Hpw. Shotgun? 2566 | -8/Materials | Build established: Tank 2953 | -8/Materials | Entered Storage 3387 | -8/Storage | Met a pair of Derelict thieves 3741 | -8/Storage | Destroyed 7 combat bots 3753 | -8/Storage | First assault squad dispatched 3819 | -8/Storage | Destroyed 8 combat bots 3842 | -8/Storage | Discovered exit to Factory (range 10) 4044 | -8/Storage | Assisted by bots powering up and referring to "LRC-V3" 4189 | -8/Storage | Entered Factory 4189 | -7/Factory | Accompanied by 10 allies 4189 | -7/Factory | Evolved 2 slots: Utility x2 4199 | -7/Factory | Identified exit to DSF 4202 | -7/Factory | Entered DSF 4202 | -7/DSF | Accompanied by 10 allies 4241 | -7/DSF | Additional patrols routed to DSF 4301 | -7/DSF | Lost 4 allies 4326 | -7/DSF | Discovered new exit (range 14) 4349 | -7/DSF | Build established: Commander-Gunner 4392 | -7/DSF | Entered Factory 4392 | -6/Factory | Accompanied by 6 allies 4392 | -6/Factory | Evolved 2 slots: Utility x2 4696 | -6/Factory | Lost 3 allies 4940 | -6/Factory | Repaired Imp. Medium Armor Plating 5002 | -6/Factory | Repaired Enh. Autogun 5372 | -6/Factory | Cargo convoy interrupted 5418 | -6/Factory | Released all parts (5) 5448 | -6/Factory | Lost 13 parts (2p4n5u2w) 5450 | -6/Factory | Core integrity fell below 50% 5486 | -6/Factory | System corruption reached 10% 5511 | -6/Factory | Released all parts (2) 5541 | -6/Factory | Lost 5 parts (1p2n1u1w) 5557 | -6/Factory | Core integrity fell below 20% 5615 | -6/Factory | Destroyed by P-60 Hacker with Shock Rifle Last Messages --------------- 05511_ Released Angular Momentum Engine. 05511_ Released Hpw. Shock Rifle. 05519_ K-01 Serf cleans the Assembly Bed. 05530_ Acquired 31 matter. 05531_ K-01 Serf cleans the Terminal. 05534_ Connecting with Terminal... Feedback: System corruption (+1%). 05534_ ALERT: Suspicious activity at Terminal F018. Dispatching Investigation squad. 05539_ Acquired 29 matter. 05545_ Connecting with Terminal... 05545_ ALERT: Suspicious activity at Terminal F002. Dispatching Investigation squad. 05552_ System corrupted: Substantial component data lost. 05571_ System corrupted: Component data lost. 05598_ Door malfunctions. 05610_ Acquired Prototype Flight Unit. 05610_ Identified Cld. Cesium-ion Thruster. 05610_ Faulty integration damages Faulty Cld. Cesium-ion Thruster (-27). 05612_ XB5PXE0ZSNBSCJF=< GZPO1XDI6V5>WE Map ----- +----------------------------------------------------+ | ????????????????#"" " # # """ """ | | ????????????????#"T " # # """ """ | | ????????????????#"" " # # """ """ | | ????????????????#"" " # # | | ????????????????#"" " # # """ """ | | ???????##???????#"" " + + """ """ | | ???##### ########" " # # """ """ | | ???# # # # | | ???# !!! ###+#### # | | ???# !! = # # | | ???# !! %= # # | | ???# # ########### | | ???# + #?????????? | | ???# # #?????????? | | ???# # ###+##/########??? | | ???# ! # ## #??? | | ???# [ # ## """ """ #??? | | ???# # ## """ """ #??? | | ???# # ## """ """ #??? | | ???############## ## #??? | | ?################ ## """ """ #??? | | # # ## """ """ #??? | | # # ## """ """ #??? | | # # ## #??? | | ? """""" """" # ## #??? | | ????"""" """" @# ## #??? | | ????"""" """" p ## #??? | | ?????""" """" # ###############??? | | ?????? # ##???????????????? | | ??????########### T#???????????????? | | ??????????????# #???????????????? | | ??????????????# ##???????????????? | | ??????????????# #????????????????? | | ??????????????# #????????????????? | | ??????????????# #????????????????? | | ?????????????#####+#####???????????????? | | ?????????????# #???????????????? | | ?????????????# """ #???????????????? | | ?????????????# """"" #???????????????? | | ?????????????# """"" #???????????????? | | ?????????????# #???????????????? | | ?????????????# "" "" #???????????????? | | ?????????????# ""S"" #???????????????? | | ?????????????# """" #???????????????? | | ?????????????###########???????????????? | | ???????????????????????????????????????? | | ???????????????????????????????????????? | | ???????????????????????????????????????? | | ???????????????????????????????????????? | | ???????????????????????????????????????? | +----------------------------------------------------+ Best States ------------- Heat Dissipation 59 Coolant Potential 65 Energy Generation 18 Energy Capacity 300 Matter Stores 300 Matter Capacity 300 Sight Range 22 Robot Scan Range 16 Terrain Scan Density 10 EM Shielding 2 Armor Coverage 600 Resistance: KI 20 Evasion (%) 63 Targeting Accuracy 16 Recoil Reduction 2 Salvage Targeting 2 Defensive Hacking 10 Authchip Count 1 Item Schematics ----------------- Reaction Control System | -8/Materials | Scanalyzed Titanium Leg | -8/Materials | Scanalyzed Pulse Rifle | -8/Materials | Scanalyzed Adv. EMP Blaster | -8/Materials | Scanalyzed Hvy. Particle Gun | -8/Materials | Scanalyzed Imp. Medium Armor Plating | -8/Materials | Scanalyzed Aerolev Unit | -8/Materials | Scanalyzed Robot Schematics ------------------ None Fabricated ------------ Nothing Repaired ---------- Hpw. Shotgun | 49% | -8/Materials Imp. Medium Armor Plating | 46% | -6/Factory Enh. Autogun | 33% | -6/Factory Alien Tech Used ----------------- None Achievements -------------- None Challenges ------------ None Game ------ Seed ShieldControlFlakker Manual? 0 Play Time 02:14:24 Cumulative 90.9 hours Start 2025.05.26 @ 23:20:44 End 2025.05.27 @ 21:58:53 Sessions 3 Manual Loads 0 Difficulty Rogue Special Mode None Game No. 35 Rogue 35 Adventurer 0 Explorer 0 Win Type - Total 3 Types 3/0/0/0/0/0/0/0/0/0 Lore% 29 Gallery% 42 Achievement% 44 Wizard Run 0 Options --------- Layout 0 ASCII 0 Keyboard 0 Movement Arrows Keybinds 0 Fullscreen 2 Font 18/Terminus Map View 76x50 Zoom Use 0% Tactical HUD 1 Map Filters NONE Filters NONE Steam 1 RUN: 91b04267-ee7b-480e-b106-dc5de01b1af4